Cogmind - Beta 14 @@@ ROGUE MODE // 2025.03.02 @ 15:08:24 Player: mix Result: Destroyed by P-60 Hacker with Shock Rifle Performance ------------- Evolutions (2) 1000 Regions Visited (6) 1200 Robots Destroyed (23) 115 Value Destroyed (215) 215 Prototype IDs (24) 480 Alien Tech Used (0) 0 Bonus (1000) 1000 TOTAL SCORE: 4010 Bonus ------- Entered Garrisons 200 Used RIF Installer 500 Aligned with FarCom 300 Cogmind --------- Core Integrity 0/550 Matter 297/300 Energy 100/100 System Corruption 8% Temperature Cool (6) Movement Core (50) Location -8/Garrison Parts ------- > --- POWER (1) -------- (None) > --- PROPULSION (4) --- (None) > --- UTILITY (4) ------ (None) > --- WEAPON (2) ------- (None) > --- INVENTORY (5) ---- Datajack Peak State ------------ > --- POWER ------------ Light Ion Engine > --- PROPULSION ------- Flight Unit Flight Unit Flight Unit VTOL Module > --- UTILITY ---------- Medium Storage Unit Compact Matter Pod Weight Redist. System Experimental Sensor Array > --- WEAPON ----------- Light Assault Rifle Hammer > --- INVENTORY -------- VTOL Module VTOL Module [Rating: 23] Favorites ----------- Power Light Ion Engine Engine Light Ion Engine Propulsion Flight Unit Wheel Compact Wheel Flight Unit Flight Unit Utility Small Storage Unit Device Weight Redist. System Storage Small Storage Unit Processor Targeting Computer Weapon Hammer Energy Gun EM Pulse Gun Ballistic Gun Light Assault Rifle Impact Weapon Hammer Build | -11 -10 -10 -10 -9 -8 -8 ------- Run | Yrd Mat Min Exi Min Mat Gar Slots Evolved 4 | . . . . . 4 . Power . | . . . . . . . Propulsion 2 | . . . . . 2 . Utility 2 | . . . . . 2 . Weapon . | . . . . . . . Parts Attached 47 | 6 9 7 . 7 8 10 Power 4 | 1 . . . 2 . 1 Engine 4 | 1 . . . 2 . 1 Core . | . . . . . . . Reactor . | . . . . . . . Propulsion 21 | 2 2 4 . 3 5 5 Treads . | . . . . . . . Leg . | . . . . . . . Wheel 2 | 2 . . . . . . Hover . | . . . . . . . Flight 19 | . 2 4 . 3 5 5 Utility 13 | 1 5 . . 1 3 3 Device 4 | . 1 . . 1 1 1 Storage 8 | 1 3 . . . 2 2 Processor 1 | . 1 . . . . . Hackware . | . . . . . . . Protection . | . . . . . . . Artifact . | . . . . . . . Weapon 9 | 2 2 3 . 1 . 1 Energy Gun 3 | 1 1 1 . . . . Energy Cannon . | . . . . . . . Ballistic Gun 4 | 1 1 1 . 1 . . Ballistic Cannon . | . . . . . . . Launcher . | . . . . . . . Special Weapon . | . . . . . . . Impact Weapon 2 | . . 1 . . . 1 Slashing Weapon . | . . . . . . . Piercing Weapon . | . . . . . . . Special Melee Weapon . | . . . . . . . Unidentified Prototypes 1 | . . . . . 1 . Parts Lost 20 | . 1 4 . 3 2 10 Power 3 | . . 1 . . 1 1 Propulsion 12 | . . 2 . 3 1 6 Utility 2 | . . . . . . 2 Weapon 3 | . 1 1 . . . 1 Highest Loss Streak 9 | . 1 4 . 3 2 9 To Critical Strikes . | . . . . . . . Average Slot Usage (%) 80 | . 86 84 85 97 66 38 Engine 8 | . 14 4 . 12 7 3 Flight 26 | . 24 27 28 27 33 20 Device 9 | . 8 14 14 13 . . Storage 13 | . 14 14 14 14 16 7 Energy Gun 1 | . 9 . . . . . Ballistic Gun 9 | . 9 12 14 14 . . Impact Weapon 9 | . . 10 14 14 9 5 Peak Build Rating 23 | 6 10 10 9 11 23 11 Average Rating 8 | 3 8 8 8 10 10 6 On Entrance 7 | . 6 10 8 9 10 7 Naked Turns 11 | . . . . . . 11 Heaviest Build 27 | 12 27 12 8 11 16 15 Greatest Support 26 | 26 26 14 8 14 22 16 Greatest Overweight (x) 3 | 3 1 . . . . 3 Average Overweight (x) . | . . . . . . . Largest Inventory Capacity 15 | 8 15 8 8 8 10 10 Average Capacity 8 | 6 8 8 8 8 9 8 Most Carried 8 | 3 8 8 8 8 7 6 Average Carried 6 | . 5 7 7 7 3 3 Final Capacity 10 | 8 8 8 8 8 10 5 Final Carried 8 | . 8 8 8 7 7 1 Class Distribution -------------------- 45% | Scavenger-Mutant 27% | Mutant 18% | Sprinter 8% | Scavenger-Sprinter Dominant Class ---------------- Sprinter | -10/Materials Scavenger-Mutant | -10/Mines Scavenger-Mutant | -10/Exiles Scavenger-Mutant | -9/Mines Scavenger-Sprinter | -8/Materials Mutant | -8/Garrison Resources | -11 -10 -10 -10 -9 -8 -8 ----------- Run | Yrd Mat Min Exi Min Mat Gar Matter Collected 680 | 231 150 175 . 75 49 . Remotely . | . . . . . . . Salvage Created 413 | . 124 229 . 44 16 . Parts 29 | . 12 14 . 3 . . Haulers Intercepted 1 | . 1 . . . . . Recyclers Shooed . | . . . . . . . Parts Field Recycled . | . . . . . . . Retrieved Matter . | . . . . . . . Parts Self-Destructed . | . . . . . . . Prevented . | . . . . . . . Kills | -11 -10 -10 -10 -9 -8 -8 ------- Run | Yrd Mat Min Exi Min Mat Gar Combat Hostiles Destroyed 20 | . 5 9 . 6 . . Melee 4 | . . 2 . 2 . . Guns 13 | . 5 6 . 2 . . Classes Destroyed 7 | . 2 3 . 1 1 . Worker 1 | . . 1 . . . . Builder 1 | . . 1 . . . . Tunneler 3 | . . 3 . . . . Hauler 1 | . 1 . . . . . Operator 1 | . . . . . 1 . Swarmer 16 | . 5 9 . 2 . . Assembled 4 | . . . . 4 . . Best Kill Streak 6 | . 3 6 . 4 1 . Combat Bots Only 6 | . 3 6 . 4 . . Max Kills in Single Turn 1 | . 1 1 . 1 1 . Gunslinging . | . . . . . . . Exploded . | . . . . . . . Melee 1 | . . 1 . 1 . . Uniques/NPCs Destroyed . | . . . . . . . Combat | -11 -10 -10 -10 -9 -8 -8 -------- Run | Yrd Mat Min Exi Min Mat Gar Hostile Shots Fired 255 | . 43 58 . 37 14 103 Missed 100 | . 24 19 . 13 8 36 Damage Taken 1774 | . 147 313 . 240 91 983 Core 749 | . 23 101 . 72 27 526 Absorbed by Shields 33 | . . . . . . 33 Core Remaining (%) 60 | 100 . . . 21 . . Volleys Fired 59 | . 24 30 . 5 . . Largest 2 | . 2 1 . 1 . . Hottest 60 | . 60 20 . 20 . . Shots Fired 72 | . 37 30 . 5 . . Gun 72 | . 37 30 . 5 . . Cannon . | . . . . . . . Launcher . | . . . . . . . Special . | . . . . . . . Kinetic 59 | . 24 30 . 5 . . Thermal . | . . . . . . . Explosive . | . . . . . . . Electromagnetic 13 | . 13 . . . . . Robot Hit Streak 6 | . 2 6 . 4 . . Robot Miss Streak 5 | . 5 5 . 2 . . Penetration Max . | . . . . . . . Secondary Targets . | . . . . . . . Shots Hit Robots 67 | . 12 29 . 9 2 15 Core Hits 19 | . 7 8 . 3 . 1 Critical Kills . | . . . . . . . Critical Parts Destroyed 5 | . . 1 . . . 4 Critical Strikes 5 | . . 1 . . . 4 Smash 5 | . . 1 . . . 4 Melee Attacks 60 | . . 23 . 11 4 22 Impact 60 | . . 23 . 11 4 22 Slashing . | . . . . . . . Piercing . | . . . . . . . Sneak Attacks 6 | . . 5 . . . 1 Combat Hostiles 1 | . . . . . . 1 Follow-up Attacks . | . . . . . . . Damage Inflicted 1524 | . 172 700 . 211 65 376 Guns 375 | . 172 176 . 27 . . Cannons . | . . . . . . . Explosions . | . . . . . . . Melee 1148 | . . 524 . 184 65 375 Ramming 1 | . . . . . . 1 Kinetic 336 | . 133 176 . 27 . . Thermal . | . . . . . . . Explosive . | . . . . . . . Electromagnetic 39 | . 39 . . . . . Impact 1148 | . . 524 . 184 65 375 Slashing . | . . . . . . . Piercing . | . . . . . . . Highest Corruption 8 | . . . . . . 8 Average Corruption 4 | . . . . . . 4 Corruption Purged . | . . . . . . . Corruption Blocked . | . . . . . . . Effects 4 | . . . . . . 4 Matter Fused 1 | . . . . . . 1 Heat Flow Errors 1 | . . . . . . 1 Data Loss (minor) 2 | . . . . . . 2 Overload Shots . | . . . . . . . Overflow Damage 287 | . . 142 . 29 2 114 Projectiles . | . . . . . . . Explosions . | . . . . . . . Melee 287 | . . 142 . 29 2 114 Knockbacks 5 | . . . . 1 . 4 Impact 3 | . . . . 1 . 2 Kinetic . | . . . . . . . Secondary 2 | . . . . . . 2 Self-Inflicted Damage . | . . . . . . . Shots . | . . . . . . . Rammed 2 | . . . . . . 2 Targets Rammed 2 | . . . . . . 2 Kicked . | . . . . . . . Crushed . | . . . . . . . Highest Temperature 95 | . 22 1 . 6 . 95 Average Temperature 11 | . 8 1 . 4 . 57 Received Heat Transfer 92 | . . . . 20 54 18 Siege Activations . | . . . . . . . Robots Corrupted 8 | . . 5 . 2 1 . Combat Hostiles 3 | . . 1 . 2 . . Parts Fried 12 | . . 8 . 3 1 . Impact Corruptions 20 | . . 9 . 4 1 6 Robots Melted . | . . . . . . . Combat Hostiles . | . . . . . . . Parts Melted . | . . . . . . . Heat Transferred . | . . . . . . . Parts Sabotaged . | . . . . . . . Parts Stolen . | . . . . . . . Parts Stripped . | . . . . . . . Power Chain Reactions . | . . . . . . . Alert | -11 -10 -10 -10 -9 -8 -8 ------- Run | Yrd Mat Min Exi Min Mat Gar Peak Influence 361 | . 352 361 . 40 41 75 Initial 136 | . . 136 . . . 16 Average 120 | . 121 320 . 37 12 21 Maximum Alert Level 1 | . 1 1 . . . . Low Security (%) 68 | 100 65 4 . 100 100 100 Level 1 31 | . 34 95 . . . . Level 2 . | . . . . . . . Level 3 . | . . . . . . . Level 4 . | . . . . . . . Level 5 . | . . . . . . . High Security . | . . . . . . . Max Security . | . . . . . . . Squads Dispatched 2 | . 1 . . . 1 . Investigation 1 | . 1 . . . . . Extermination . | . . . . . . . Reinforcement 1 | . . . . . 1 . Assault . | . . . . . . . Garrison . | . . . . . . . Intercept . | . . . . . . . Searches Triggered . | . . . . . . . Construction Impeded . | . . . . . . . Haulers Reinforced . | . . . . . . . Active Scanning Responses . | . . . . . . . Cargo Convoy Interrupts . | . . . . . . . Stealth | -11 -10 -10 -10 -9 -8 -8 --------- Run | Yrd Mat Min Exi Min Mat Gar Distress Signals 1 | . 1 . . . . . Communications Jammed . | . . . . . . . Distress Signals . | . . . . . . . Times Spotted 50 | . 18 11 . 8 8 5 Peak Tracking Total 6 | . 6 3 . 4 6 6 Tactical Retreats 8 | . 4 1 . 1 . 2 Traps | -11 -10 -10 -10 -9 -8 -8 ------- Run | Yrd Mat Min Exi Min Mat Gar Traps Triggered 4 | . 1 . . . . 3 Indirectly . | . . . . . . . Trap Hack Attempts . | . . . . . . . Triggered . | . . . . . . . Disarmed . | . . . . . . . Reprogrammed . | . . . . . . . Reused 2 | . . . . 2 . . Traps Extracted . | . . . . . . . Installed 4 | . . . . 4 . . Triggered . | . . . . . . . Most Traps Carried 1 | . . . . 1 . . Machines | -11 -10 -10 -10 -9 -8 -8 ---------- Run | Yrd Mat Min Exi Min Mat Gar Machines Disabled 1 | . 1 . . . . . Max in Single Turn 1 | . 1 . . . . . Machines Repaired . | . . . . . . . Machines Dismantled . | . . . . . . . Machines Sabotaged . | . . . . . . . Overloaded Fab Kills . | . . . . . . . Hacking | -11 -10 -10 -10 -9 -8 -8 --------- Run | Yrd Mat Min Exi Min Mat Gar Machines Accessed 8 | . 5 . 1 . 2 . Terminals 4 | . 3 . . . 1 . Fabricators . | . . . . . . . Repair Stations . | . . . . . . . Recycling Units 2 | . 2 . . . . . Scanalyzers . | . . . . . . . Garrison Access 1 | . . . . . 1 . Total Hacks 12 | . 9 . 1 . 2 . Successful 9 | . 6 . 1 . 2 . Failed 3 | . 3 . . . . . Catastrophic . | . . . . . . . Database Lockouts . | . . . . . . . Manual 5 | . 3 . 1 . 1 . Terminals 7 | . 6 . . . 1 . Fabricators . | . . . . . . . Repair Stations . | . . . . . . . Recycling Units 3 | . 3 . . . . . Scanalyzers . | . . . . . . . Garrison Access 1 | . . . . . 1 . Terminal Hacks 3 | . 2 . 1 . . . Robot Analysis 1 | . 1 . . . . . Zone Layout 1 | . 1 . . . . . Derelict Proto ID Bank 1 | . . . 1 . . . Fabricator Hacks . | . . . . . . . Repair Station Hacks . | . . . . . . . Recycling Unit Hacks 2 | . 2 . . . . . Retrieve Components 2 | . 2 . . . . . Scanalyzer . | . . . . . . . Garrison Access Hacks 1 | . . . . . 1 . Unlock Access 1 | . . . . . 1 . Unauthorized Hacks 3 | . 2 . . . 1 . Terminals 3 | . 2 . . . 1 . Assimilate 1 | . . . . . 1 . Botnet 2 | . 2 . . . . . Fabricators . | . . . . . . . Repair Stations . | . . . . . . . Recycling Units . | . . . . . . . Scanalyzers . | . . . . . . . Garrison Access . | . . . . . . . Data Cores Recovered . | . . . . . . . Used . | . . . . . . . Hacking Detections 3 | . 3 . . . . . Full Trace Events . | . . . . . . . Feedback Events . | . . . . . . . Feedback Blocked . | . . . . . . . Robot Schematics Acquired . | . . . . . . . Robots Built . | . . . . . . . Authchips . | . . . . . . . Time . | . . . . . . . Total Robot Build Rating . | . . . . . . . Part Schematics Acquired . | . . . . . . . Parts Built . | . . . . . . . Authchips . | . . . . . . . Time . | . . . . . . . Total Part Build Rating . | . . . . . . . Parts Repaired . | . . . . . . . Time . | . . . . . . . Parts Recycled . | . . . . . . . Recycled Matter . | . . . . . . . Retrieved Matter . | . . . . . . . Retrieved Components 7 | . 7 . . . . . Parts Scanalyzed . | . . . . . . . Part Schematics Acquired . | . . . . . . . Parts Damaged . | . . . . . . . Bothacking | -11 -10 -10 -10 -9 -8 -8 ------------ Run | Yrd Mat Min Exi Min Mat Gar Used RIF Installer 1 | . . . . . . 1 Robots Hacked . | . . . . . . . Non-combat . | . . . . . . . Combat . | . . . . . . . Robot Hacks Applied . | . . . . . . . Relay Couplers Released . | . . . . . . . Fabnet Peak Effective % . | . . . . . . . Robots Rewired . | . . . . . . . Allies Hacked . | . . . . . . . Hacks Repelled . | . . . . . . . Allies | -11 -10 -10 -10 -9 -8 -8 -------- Run | Yrd Mat Min Exi Min Mat Gar Total Allies 4 | . . 3 . . 1 . Largest Group 3 | . . 3 3 . 1 . Highest-Rated Group 72 | . . 72 72 . 10 . Highest-Rated Ally 31 | . . 31 31 . 10 . Total Orders . | . . . . . . . Ally Attacks . | . . . . . . . Total Damage . | . . . . . . . Kills . | . . . . . . . Allies Corrupted . | . . . . . . . Allies Melted . | . . . . . . . Intel | -11 -10 -10 -10 -9 -8 -8 ------- Run | Yrd Mat Min Exi Min Mat Gar Robot Analysis Total 1 | . 1 . . . . . Derelict Logs Recovered 3 | . . 2 . 1 . . Drone Launches . | . . . . . . . Drone Recoveries . | . . . . . . . Exploration | -11 -10 -10 -10 -9 -8 -8 ------------- Run | Yrd Mat Min Exi Min Mat Gar Turns Passed 1569 | 44 273 381 108 403 168 192 Spaces Moved 1678 | 35 354 327 219 435 148 160 Core 81 | 16 . . . . . 65 Treads . | . . . . . . . Legs . | . . . . . . . Wheels 44 | 19 25 . . . . . Hover . | . . . . . . . Flight 1553 | . 329 327 219 435 148 95 Fastest Speed 26 | 50 32 32 37 34 29 26 Average Speed 40 | 93 42 36 37 36 30 57 Slowest Speed 200 | 200 112 40 37 40 32 200 Overloaded Moves . | . . . . . . . Propulsion Burnouts . | . . . . . . . Robots Hopped 9 | . 1 3 . 1 4 . Cave-ins Triggered . | . . . . . . . Time Travels 1 | . . . . 1 . . Exploration Rate (%) 41 | 3 45 74 61 67 12 25 Regions Visited 6 Branch Regions 3 Pre-discovered Areas 1 | . . 1 . . . . Known Exits Taken 1 | . . . . . 1 . Unknown Exits Taken 5 | 1 1 1 1 1 . . Scrap Searched 3 | . . 1 . 2 . . Spaces Dug . | . . . . . . . Terrain Destroyed . | . . . . . . . Melee . | . . . . . . . Projectile . | . . . . . . . AOE . | . . . . . . . Terrain Rammed . | . . . . . . . Walls Destroyed . | . . . . . . . Machines Disabled . | . . . . . . . Actions | -11 -10 -10 -10 -9 -8 -8 --------- Run | Yrd Mat Min Exi Min Mat Gar Total 2384 | 46 441 514 245 654 264 220 Wait 468 | . 35 120 25 183 97 8 Move 1655 | 34 351 320 218 432 140 160 Hop 9 | . 1 3 . 1 4 . Pick Up 37 | 6 14 6 1 7 3 . Fast Attach 3 | . . 3 . . . . Attach 35 | 6 5 2 . 6 8 8 Detach 9 | . 2 . . . 5 2 Swap 9 | . 4 2 . 1 . 2 Drop 19 | . 5 5 1 4 3 1 Fire 59 | . 24 30 . 5 . . Melee 60 | . . 23 . 11 4 22 Ram 2 | . . . . . . 2 Kick . | . . . . . . . Crush . | . . . . . . . Escape Stasis 15 | . . . . . . 15 Rewire . | . . . . . . . Trap 4 | . . . . 4 . . Miscellaneous . | . . . . . . . Route ------- -11/Scrapyard -10/Materials -10/Mines (discovered 2 exits: [*Mat] / *Exi) -10/Exiles -9/Mines -8/Materials (discovered 2 exits: *Sto / Gar) -8/Garrison History --------- Turn | Location | Event 3 | -11/Scrapyard | Discovered new exit (range 15) 45 | -11/Scrapyard | Entered Materials 312 | -10/Materials | Discovered new exit (range 12) 318 | -10/Materials | Entered Mines 398 | -10/Mines | Learned location of Zion (-7) 417 | -10/Mines | Discovered new exit (range 6) 493 | -10/Mines | Lost 4 parts (1p2n1w) 531 | -10/Mines | Received a Mining Laser from a helpful Derelict 611 | -10/Mines | Deemed a non-threat by the Exiles lab entrance 611 | -10/Mines | Discovered new exit (range 5) 699 | -10/Mines | Entered Exiles 699 | -10/Exiles | Accompanied by 3 allies 722 | -10/Exiles | Met 8R-AWN 729 | -10/Exiles | Led the pair of lost Derelicts to a safe place 741 | -10/Exiles | Met EX-HEX 752 | -10/Exiles | Met EX-BIN 756 | -10/Exiles | Aligned with FarCom system 757 | -10/Exiles | Given EX-Vault access code 766 | -10/Exiles | Opened EX-Vault 770 | -10/Exiles | Found Chronowheel 779 | -10/Exiles | Warned to stay clear of 0b10 Research branches 789 | -10/Exiles | Build established: Scavenger-Mutant 789 | -10/Exiles | Met EX-DEC 801 | -10/Exiles | Discovered new exit (range 14) 807 | -10/Exiles | Left Exiles lab with Chronowheel 807 | -10/Exiles | Entered Mines 809 | -9/Mines | Core integrity fell below 50% 845 | -9/Mines | Learned Materials terminal intel 852 | -9/Mines | Found a damaged Exp. Sensor Array with a note attached 853 | -9/Mines | Found Prototype Device 857 | -9/Mines | Found a hidden stash of uninstalled traps 859 | -9/Mines | Assembled infested the area 862 | -9/Mines | Lost 3 parts (3n) 1057 | -9/Mines | Activated Chronowheel 1057 | -9/Mines | Spacetime reconverged on an earlier point 1194 | -9/Mines | Discovered new exit (range 7) 1210 | -9/Mines | Entered Materials 1210 | -8/Materials | Evolved 4 slots: Propulsion x2, Utility x2 1211 | -8/Materials | Identified exit to Storage 1212 | -8/Materials | Loaded intel: 12 terminal locations 1215 | -8/Materials | Identified Exp. Sensor Array 1378 | -8/Materials | Identified exit to Garrison 1378 | -8/Materials | Entered Garrison 1485 | -8/Garrison | Installed Relay Interface Framework 1505 | -8/Garrison | Core integrity fell below 50% 1529 | -8/Garrison | Core integrity fell below 20% 1538 | -8/Garrison | Lost 9 parts (1p5n2u1w) 1550 | -8/Garrison | Triggered checkpoint 1570 | -8/Garrison | Destroyed by P-60 Hacker with Shock Rifle Last Messages --------------- Field strength at 53. Field strength at 47. Field strength at 41. Field strength at 31. Field strength at 25. Field strength at 19. VTOL Module destroyed. Field strength at 9. Field strength at 3. Stasis field depleted. Triggered Stasis Trap. A bubble of rippling energy engulfs the area. Field strength at 94. Field strength at 88. Y-45 Defender misfires. Field strength at 82. P-60 Hacker resets Y-45 Defender, system corruption cleaned. Field strength at 76. Field strength at 70. Map ----- +----------------------------------------------------+ | ?????????????????????????????????????????# #????? | | ?????????????????????????????????????????# #????? | | ?????????????????????????????????????????# #????? | | ?????????????????????????????????????????# #????? | | ?????????????????????????????????????????# #????? | | ?????????????????????????????????????????# #????? | | ?????????????????????????????????????????# #????? | | ?????????????????????????????????????????# #????? | | ?????????????????????????????????????????# #????? | | ?????????????????????????????????????????# #????? | | ?????????????????????????????????????????# #????? | | ?????????????????????????????????????????# #????? | | ?????????????????????????????????????????##"###### | | ?????????????????????????????????????????# | | ?????????????????????????????????????????# | | ?????????????????????????????????????????# ###### | | ?????????????????????????????????????????# #????? | | ?????????????????????????????????????????# #????? | | ???????????????????#?????????????????????# #????? | | ???????????????????# ????????????????????# #????? | | ???????????????????# ?????????????####### #????? | | ???????????????????# ????????????# ## #????? | | ???????????????????# ############# ## ##???? | | ???????????????????# ^ Y p #???? | | ???????????????????# ^ ^ #???? | | ???????????????????# ^@ ^ #???? | | ???????????????????############ ## ## #???? | | ??????????????????????????????# ## ## #???? | | ?????????????????????????????s" "???? | | ?????????????????????????????s" "???? | | ?????????????????????????????s" "???? | | ?????????????????????????????s" "???? | | ??????????????????????????????# ## ## #???? | | ??????????????????????????????# ## #? #???? | | ??????????????????????????????# ? ???? | | ??????????????????????????????# ? ???? | | ??????????????????????????????# #???? | | ??????????????????????????????## ##""""#? ##???? | | ???????????????????????????????? ???????????????? | | ??????????????ggg????????????????????????????????? | | ????????????????????gg???????????????????????????? | | ?????????????????????????????????????????????????? | | ????????????????????g????????????????????????????? | | ?????????????????????????????????????????????????? | | ?????????????????????????????????????????????????? | | ?????????????????????????????????????????????????? | | ?????????????????????????????????????????????????? | | ?????????????????????????????????????????????????? | | ?????????????????????????????????????????????????? | | ?????????????????????????????????????????????????? | +----------------------------------------------------+ Best States ------------- Heat Dissipation 31 Energy Generation 10 Energy Capacity 125 Matter Stores 406 Matter Capacity 450 Sight Range 16 Terrain Scan Density 10 Additional Mass Support 6 Evasion (%) 64 Targeting Accuracy 5 Item Schematics ----------------- None Robot Schematics ------------------ None Fabricated ------------ Nothing Alien Tech Used ----------------- None Achievements -------------- None Challenges ------------ None Game ------ Seed DispersionBurstTerrabomb Manual? 0 Play Time 00:29:20 Cumulative 47.8 hours Start 2025.03.02 @ 14:40:12 End 2025.03.02 @ 15:08:24 Sessions 1 Manual Loads 0 Difficulty Rogue Special Mode None Game No. 63 Rogue 49 Adventurer 14 Explorer 0 Win Type - Total 0 Types 0/0/0/0/0/0/0/0/0 Lore% 19 Gallery% 36 Achievement% 36 Wizard Run 0 Options --------- Layout 1 ASCII 0 Keyboard 0 Movement Mouse Keybinds 0 Fullscreen 1 Font 24/Smallcaps Map View 50x35 Zoom Use 0% Tactical HUD 0 Map Filters NONE Filters NONE Steam 1 RUN: fa673a2c-5f0d-44be-b8bd-9148271af462